[Event "Early-Titled-Tuesday-Blitz-April-23-2024"]
[Site "Chess.com"]
[Date "2024.04.23"]
[Round "3"]
[White "IwkooO"]
[Black "Bauman_Guy"]
[Result "1-0"]
[WhiteElo "2699"]
[BlackElo "2909"]
[TimeControl "180+1"]
[EndTime "8:30:39 PDT"]
[Termination "IwkooO won by resignation"]

1. e4 {[%clk 0:02:58.5]} 1... c5 {[%clk 0:02:59.9]} 2. Nf3 {[%clk 0:02:58.2]}
2... d6 {[%clk 0:03:00.2]} 3. Bb5+ {[%clk 0:02:54.8]} 3... Nd7 {[%clk
0:02:56.5]} 4. c3 {[%clk 0:02:51.4]} 4... Nf6 {[%clk 0:02:54.8]} 5. Qe2 {[%clk
0:02:51.4]} 5... a6 {[%clk 0:02:53.9]} 6. Ba4 {[%clk 0:02:51.7]} 6... g6 {[%clk
0:02:49.4]} 7. d4 {[%clk 0:02:49.5]} 7... b5 {[%clk 0:02:49.5]} 8. Bc2 {[%clk
0:02:49.2]} 8... e5 {[%clk 0:02:49.5]} 9. O-O {[%clk 0:02:48]} 9... Bb7 {[%clk
0:02:45.5]} 10. Rd1 {[%clk 0:02:45.6]} 10... Qc7 {[%clk 0:02:37.5]} 11. a4
{[%clk 0:02:42.3]} 11... c4 {[%clk 0:02:17.9]} 12. axb5 {[%clk 0:02:31.9]} 12...
axb5 {[%clk 0:02:18.5]} 13. Rxa8+ {[%clk 0:02:32.8]} 13... Bxa8 {[%clk
0:02:18.5]} 14. Na3 {[%clk 0:02:33.7]} 14... Qb6 {[%clk 0:02:11]} 15. Be3 {[%clk
0:02:31.3]} 15... Ng4 {[%clk 0:02:10.8]} 16. Bg5 {[%clk 0:02:24.3]} 16... h6
{[%clk 0:02:07.5]} 17. Bh4 {[%clk 0:02:24.5]} 17... Bg7 {[%clk 0:02:01.5]} 18.
h3 {[%clk 0:02:12.6]} 18... Ngf6 {[%clk 0:02:00.3]} 19. Bg3 {[%clk 0:02:11.1]}
19... Nh5 {[%clk 0:02:00.1]} 20. Bh2 {[%clk 0:02:10.9]} 20... O-O {[%clk
0:01:55.2]} 21. b3 {[%clk 0:02:08.9]} 21... cxb3 {[%clk 0:01:48.3]} 22. Bxb3
{[%clk 0:02:09.7]} 22... b4 {[%clk 0:01:47.6]} 23. Nc4 {[%clk 0:02:09.5]} 23...
Qb8 {[%clk 0:01:47.2]} 24. cxb4 {[%clk 0:01:27.1]} 24... Qxb4 {[%clk 0:01:45.3]}
25. Bc2 {[%clk 0:01:27.5]} 25... Rc8 {[%clk 0:01:36.9]} 26. Bd3 {[%clk
0:01:27.7]} 26... Nf4 {[%clk 0:01:28.9]} 27. Bxf4 {[%clk 0:01:27.9]} 27... exf4
{[%clk 0:01:29.8]} 28. Rb1 {[%clk 0:01:21.6]} 28... Qc3 {[%clk 0:01:26.3]} 29.
Nxd6 {[%clk 0:01:19.1]} 29... Rd8 {[%clk 0:01:25.3]} 30. Nb5 {[%clk 0:01:16.3]}
30... Qa5 {[%clk 0:01:20.9]} 31. e5 {[%clk 0:01:13.2]} 31... Nf8 {[%clk
0:01:20.9]} 32. Nd6 {[%clk 0:01:12.1]} 32... Ne6 {[%clk 0:01:18.9]} 33. Bc4
{[%clk 0:01:09.6]} 33... Bxf3 {[%clk 0:00:59.4]} 34. Qxf3 {[%clk 0:01:10.5]}
34... Nxd4 {[%clk 0:00:57.3]} 35. Qxf4 {[%clk 0:01:10.9]} 35... Kh7 {[%clk
0:00:33.2]} 36. Nxf7 {[%clk 0:00:47.4]} 36... Rd7 {[%clk 0:00:28.7]} 37. e6
{[%clk 0:00:44.2]} 37... Rc7 {[%clk 0:00:25.4]} 38. Bd3 {[%clk 0:00:30.6]} 38...
Nxe6 {[%clk 0:00:24.6]} 39. Qe4 {[%clk 0:00:31.2]} 39... Nf8 {[%clk 0:00:21.6]}
40. Nd6 {[%clk 0:00:27.6]} 40... Qe5 {[%clk 0:00:13.8]} 41. Qxe5 {[%clk
0:00:20.6]} 41... Bxe5 {[%clk 0:00:14.7]} 42. Nc4 {[%clk 0:00:19.7]} 42... Bf6
{[%clk 0:00:14.4]} 43. Ne3 {[%clk 0:00:19.9]} 43... Rd7 {[%clk 0:00:14.2]} 44.
Be4 {[%clk 0:00:19.9]} 44... Kg7 {[%clk 0:00:14.3]} 45. Nd5 {[%clk 0:00:20]}
45... Bd8 {[%clk 0:00:14.6]} 46. f3 {[%clk 0:00:19]} 46... Ne6 {[%clk
0:00:14.9]} 47. Nb6 {[%clk 0:00:14.9]} 47... Rd2 {[%clk 0:00:13.5]} 48. Nc4
{[%clk 0:00:15]} 48... Ra2 {[%clk 0:00:12.4]} 49. Ne5 {[%clk 0:00:11.7]} 49...
Nf4 {[%clk 0:00:11.3]} 50. Rb7+ {[%clk 0:00:10.3]} 50... Kg8 {[%clk 0:00:10.2]}
51. Kh1 {[%clk 0:00:04.8]} 51... Ra1+ {[%clk 0:00:02.8]} 52. Kh2 {[%clk
0:00:05.2]} 52... Ra2 {[%clk 0:00:03.3]} 53. Rb8 {[%clk 0:00:05]} 53... Rxg2+
{[%clk 0:00:02.4]} 54. Kh1 {[%clk 0:00:05.5]} 54... Rd2 {[%clk 0:00:03.3]} 55.
Nc6 {[%clk 0:00:06]} 55... Ne6 {[%clk 0:00:02.8]} 56. Bxg6 {[%clk 0:00:05.7]}
56... Kg7 {[%clk 0:00:03]} 57. Bf5 {[%clk 0:00:05.6]} 57... Rd1+ {[%clk
0:00:03.3]} 58. Kg2 {[%clk 0:00:04.6]} 58... Nf4+ {[%clk 0:00:03.8]} 59. Kg3
{[%clk 0:00:04.5]} 59... Bc7 {[%clk 0:00:01.9]} 60. Rb7 {[%clk 0:00:05]} 60...
Nd5+ {[%clk 0:00:02.5]} 61. Kf2 {[%clk 0:00:04.5]} 61... Kf6 {[%clk 0:00:03.4]}
62. Be4 {[%clk 0:00:03.9]} 62... Rd2+ {[%clk 0:00:03.9]} 63. Ke1 {[%clk
0:00:04.2]} 63... Bf4 {[%clk 0:00:03.4]} 64. Bxd5 {[%clk 0:00:03.4]} 64... Rxd5
{[%clk 0:00:04.3]} 65. Nb4 {[%clk 0:00:03.7]} 65... Re5+ {[%clk 0:00:04]} 66.
Kf1 {[%clk 0:00:03.6]} 66... Re3 {[%clk 0:00:04.1]} 67. Nd5+ {[%clk 0:00:03.8]}
67... Kg5 {[%clk 0:00:04.7]} 68. Nxe3 {[%clk 0:00:04.5]} 68... Bxe3 {[%clk
0:00:05.6]} 69. Kg2 {[%clk 0:00:05.2]} 69... Kf5 {[%clk 0:00:05.2]} 70. Rb4
{[%clk 0:00:05.5]} 70... Bf4 {[%clk 0:00:04.9]} 71. Re4 {[%clk 0:00:06.1]} 71...
h5 {[%clk 0:00:04.6]} 72. h4 {[%clk 0:00:06.6]} 72... Be5 {[%clk 0:00:04.9]} 73.
Kh3 {[%clk 0:00:06.7]} 73... Bf6 {[%clk 0:00:05.4]} 74. Ra4 {[%clk 0:00:06.9]}
74... Be5 {[%clk 0:00:06]} 75. Rc4 {[%clk 0:00:06]} 75... Bf6 {[%clk 0:00:06.1]}
76. f4 {[%clk 0:00:06.3]} 76... Be5 {[%clk 0:00:07]} 77. fxe5 {[%clk 0:00:06.4]}
1-0

[Event "Early-Titled-Tuesday-Blitz-April-23-2024"]
[Site "Chess.com"]
[Date "2024.04.23"]
[Round "3"]
[White "SirStrateg"]
[Black "zverr1"]
[Result "1-0"]
[WhiteElo "2668"]
[BlackElo "2486"]
[TimeControl "180+1"]
[EndTime "8:30:46 PDT"]
[Termination "SirStrateg won on time"]

1. e4 {[%clk 0:03:00.9]} 1... c5 {[%clk 0:02:59.3]} 2. Nf3 {[%clk 0:03:00.6]}
2... Nc6 {[%clk 0:02:58.9]} 3. Bb5 {[%clk 0:03:00.6]} 3... h5 {[%clk 0:02:58.8]}
4. Bxc6 {[%clk 0:02:58.9]} 4... dxc6 {[%clk 0:02:59.7]} 5. d3 {[%clk 0:02:58.6]}
5... h4 {[%clk 0:02:58.9]} 6. h3 {[%clk 0:02:59.1]} 6... f6 {[%clk 0:02:57]} 7.
Be3 {[%clk 0:02:54.9]} 7... e5 {[%clk 0:02:56.5]} 8. Nc3 {[%clk 0:02:54]} 8...
Be6 {[%clk 0:02:54]} 9. Nd2 {[%clk 0:02:51.9]} 9... g5 {[%clk 0:02:50.1]} 10. a3
{[%clk 0:02:44]} 10... a5 {[%clk 0:02:42.7]} 11. a4 {[%clk 0:02:42.4]} 11... b6
{[%clk 0:02:41.1]} 12. b3 {[%clk 0:02:41]} 12... Qd7 {[%clk 0:02:39]} 13. Nc4
{[%clk 0:02:41.1]} 13... Qc7 {[%clk 0:02:33.2]} 14. Qf3 {[%clk 0:02:38.7]} 14...
Be7 {[%clk 0:02:29.9]} 15. Kd2 {[%clk 0:02:23]} 15... Nh6 {[%clk 0:02:28.3]} 16.
Kc1 {[%clk 0:02:18.9]} 16... Nf7 {[%clk 0:02:27.1]} 17. Kb2 {[%clk 0:02:18.9]}
17... O-O-O {[%clk 0:02:24.4]} 18. Qe2 {[%clk 0:02:10.1]} 18... Nd6 {[%clk
0:02:23.2]} 19. f3 {[%clk 0:02:07.9]} 19... Kb7 {[%clk 0:02:13.3]} 20. Qf2
{[%clk 0:02:06]} 20... Ka6 {[%clk 0:02:10.5]} 21. Rhb1 {[%clk 0:01:58.6]} 21...
Rb8 {[%clk 0:02:06.8]} 22. Kc1 {[%clk 0:01:57.6]} 22... Kb7 {[%clk 0:02:07.4]}
23. Kd2 {[%clk 0:01:50.1]} 23... Kc8 {[%clk 0:02:07.7]} 24. Nd1 {[%clk
0:01:35.2]} 24... Rd8 {[%clk 0:02:04.3]} 25. Nxd6+ {[%clk 0:01:34.6]} 25... Qxd6
{[%clk 0:02:00]} 26. Ke2 {[%clk 0:01:34.7]} 26... Kd7 {[%clk 0:01:52.7]} 27. Bd2
{[%clk 0:01:34.3]} 27... Rh8 {[%clk 0:01:49.7]} 28. Bc3 {[%clk 0:01:34.6]} 28...
Ke8 {[%clk 0:01:49.3]} 29. Ne3 {[%clk 0:01:35]} 29... Kf7 {[%clk 0:01:41.4]} 30.
Rd1 {[%clk 0:01:30.9]} 30... Kg6 {[%clk 0:01:40.1]} 31. Nc4 {[%clk 0:01:31.2]}
31... Qc7 {[%clk 0:01:38.8]} 32. Kf1 {[%clk 0:01:31]} 32... Rhc8 {[%clk
0:01:32.1]} 33. Rd2 {[%clk 0:01:31.3]} 33... Rd8 {[%clk 0:01:19.5]} 34. Qe1
{[%clk 0:01:30.6]} 34... Rd7 {[%clk 0:01:16.8]} 35. Qc1 {[%clk 0:01:30.6]} 35...
Bd8 {[%clk 0:01:09.6]} 36. Qb2 {[%clk 0:01:31]} 36... Bxc4 {[%clk 0:01:07.3]}
37. bxc4 {[%clk 0:01:27.9]} 37... Qa7 {[%clk 0:00:57.4]} 38. Rb1 {[%clk
0:01:27.6]} 38... Bc7 {[%clk 0:00:49.5]} 39. Qc1 {[%clk 0:01:21.7]} 39... Qa6
{[%clk 0:00:42.2]} 40. Rb3 {[%clk 0:01:18.6]} 40... b5 {[%clk 0:00:39.8]} 41.
cxb5 {[%clk 0:01:18.9]} 41... cxb5 {[%clk 0:00:40.7]} 42. axb5 {[%clk
0:01:18.8]} 42... Rxb5 {[%clk 0:00:41.6]} 43. Rxb5 {[%clk 0:01:16.9]} 43... Qxb5
{[%clk 0:00:42.5]} 44. Qa1 {[%clk 0:01:16.3]} 44... Bd8 {[%clk 0:00:39.5]} 45.
Rd1 {[%clk 0:01:15.9]} 45... Rb7 {[%clk 0:00:40.1]} 46. Ke2 {[%clk 0:01:10.6]}
46... Bc7 {[%clk 0:00:32.9]} 47. Qa2 {[%clk 0:01:11]} 47... Bd6 {[%clk
0:00:21.5]} 48. Ra1 {[%clk 0:01:06.9]} 48... Ra7 {[%clk 0:00:20.5]} 49. Rb1
{[%clk 0:01:04.6]} 49... Qd7 {[%clk 0:00:16.9]} 50. Qg8+ {[%clk 0:00:48.1]}
50... Qg7 {[%clk 0:00:16.4]} 51. Qd5 {[%clk 0:00:44.1]} 51... Qc7 {[%clk
0:00:13.1]} 52. Bxa5 {[%clk 0:00:34.1]} 52... Qxa5 {[%clk 0:00:04.5]} 53. Qxd6
{[%clk 0:00:34.5]} 53... Qa2 {[%clk 0:00:03.9]} 54. Rc1 {[%clk 0:00:33.3]} 54...
Qb2 {[%clk 0:00:02.8]} 55. Kd2 {[%clk 0:00:31.5]} 55... Qb4+ {[%clk 0:00:03]}
56. Kd1 {[%clk 0:00:31.2]} 56... Ra2 {[%clk 0:00:03]} 57. Qd5 {[%clk 0:00:30.3]}
57... Rb2 {[%clk 0:00:03.3]} 58. Qg8+ {[%clk 0:00:30.5]} 58... Kh6 {[%clk
0:00:04.1]} 59. Qf8+ {[%clk 0:00:29]} 59... Kg6 {[%clk 0:00:04.5]} 60. Qg8+
{[%clk 0:00:29.6]} 60... Kh6 {[%clk 0:00:05.1]} 61. Qe6 {[%clk 0:00:28.5]} 61...
Kg6 {[%clk 0:00:05.3]} 62. Qd5 {[%clk 0:00:26.7]} 62... Kg7 {[%clk 0:00:05.5]}
63. Ke2 {[%clk 0:00:21.9]} 63... Kg6 {[%clk 0:00:05]} 64. Qg8+ {[%clk
0:00:20.9]} 64... Kh6 {[%clk 0:00:05.2]} 65. Qc4 {[%clk 0:00:18.8]} 65... Qxc4
{[%clk 0:00:02.4]} 66. dxc4 {[%clk 0:00:19.3]} 66... Kg6 {[%clk 0:00:02.2]} 67.
Kd3 {[%clk 0:00:19.4]} 67... Ra2 {[%clk 0:00:01.6]} 68. Rb1 {[%clk 0:00:17.9]}
68... Ra3+ {[%clk 0:00:02.3]} 69. Kd2 {[%clk 0:00:16.9]} 69... Ra4 {[%clk
0:00:02.3]} 70. Kc3 {[%clk 0:00:15.5]} 70... Ra3+ {[%clk 0:00:02.9]} 71. Kd2
{[%clk 0:00:10.7]} 71... Ra4 {[%clk 0:00:03.3]} 72. Kd3 {[%clk 0:00:10.9]} 72...
Ra3+ {[%clk 0:00:03.8]} 73. c3 {[%clk 0:00:06.8]} 73... Ra2 {[%clk 0:00:04.2]}
74. Rb5 {[%clk 0:00:06.9]} 74... Rxg2 {[%clk 0:00:04.7]} 75. Rxc5 {[%clk
0:00:07.5]} 75... Rg3 {[%clk 0:00:05.4]} 76. Ke3 {[%clk 0:00:07.3]} 76... Rxh3
{[%clk 0:00:05.6]} 77. Rd5 {[%clk 0:00:07.7]} 77... Kf7 {[%clk 0:00:04.2]} 78.
c5 {[%clk 0:00:07.9]} 78... Rh1 {[%clk 0:00:03]} 79. c6 {[%clk 0:00:08.3]} 79...
Rc1 {[%clk 0:00:01.7]} 80. Rc5 {[%clk 0:00:08.6]} 1-0

[Event "Early-Titled-Tuesday-Blitz-April-23-2024"]
[Site "Chess.com"]
[Date "2024.04.23"]
[Round "3"]
[White "SpongeBob_03"]
[Black "Kotofeyca"]
[Result "0-1"]
[WhiteElo "2267"]
[BlackElo "2482"]
[TimeControl "180+1"]
[EndTime "8:30:51 PDT"]
[Termination "Kotofeyca won by resignation"]

1. Nf3 {[%clk 0:03:00.9]} 1... d5 {[%clk 0:02:59.9]} 2. e3 {[%clk 0:03:00]} 2...
c6 {[%clk 0:02:59.7]} 3. c4 {[%clk 0:02:59.6]} 3... Nf6 {[%clk 0:02:59.4]} 4. b3
{[%clk 0:02:59.8]} 4... Bg4 {[%clk 0:02:59.3]} 5. Bb2 {[%clk 0:02:59.4]} 5...
Nbd7 {[%clk 0:02:59.4]} 6. h3 {[%clk 0:02:59.1]} 6... Bh5 {[%clk 0:02:59.2]} 7.
d3 {[%clk 0:02:58.7]} 7... e6 {[%clk 0:02:58.1]} 8. Nbd2 {[%clk 0:02:56.3]} 8...
Bc5 {[%clk 0:02:51.3]} 9. Be2 {[%clk 0:02:55.9]} 9... Qe7 {[%clk 0:02:51.3]} 10.
a3 {[%clk 0:02:51.8]} 10... a5 {[%clk 0:02:49.7]} 11. d4 {[%clk 0:02:48.5]}
11... Bd6 {[%clk 0:02:46.7]} 12. c5 {[%clk 0:02:48.2]} 12... Bc7 {[%clk
0:02:46.6]} 13. b4 {[%clk 0:02:47.2]} 13... axb4 {[%clk 0:02:44.8]} 14. axb4
{[%clk 0:02:48.1]} 14... O-O {[%clk 0:02:42.7]} 15. O-O {[%clk 0:02:45]} 15...
e5 {[%clk 0:02:37.6]} 16. Nxe5 {[%clk 0:02:43.7]} 16... Nxe5 {[%clk 0:02:21.2]}
17. Bxh5 {[%clk 0:02:36.4]} 17... Nd3 {[%clk 0:01:53.9]} 18. Bc3 {[%clk
0:02:34.4]} 18... Rxa1 {[%clk 0:01:50.2]} 19. Bxa1 {[%clk 0:02:30.8]} 19... Nxb4
{[%clk 0:01:42.4]} 20. Bf3 {[%clk 0:02:29.6]} 20... b5 {[%clk 0:01:13]} 21. cxb6
{[%clk 0:02:19.9]} 21... Bxb6 {[%clk 0:01:13.1]} 22. Qb3 {[%clk 0:02:19.9]}
22... Bc7 {[%clk 0:01:05]} 23. Bc3 {[%clk 0:02:12.3]} 23... Rb8 {[%clk
0:01:02.6]} 24. Rb1 {[%clk 0:02:09]} 24... Bd6 {[%clk 0:00:43.6]} 25. Qa4 {[%clk
0:02:01.5]} 25... Rb6 {[%clk 0:00:19.7]} 26. Qa8+ {[%clk 0:00:26.2]} 26... Rb8
{[%clk 0:00:19.9]} 27. Qa5 {[%clk 0:00:19.8]} 27... g6 {[%clk 0:00:18.5]} 28.
Be2 {[%clk 0:00:12.5]} 28... h5 {[%clk 0:00:17.8]} 29. Qa4 {[%clk 0:00:12]}
29... Rb6 {[%clk 0:00:15]} 30. Bxb4 {[%clk 0:00:10.2]} 30... Bxb4 {[%clk
0:00:14]} 31. Qa8+ {[%clk 0:00:10.6]} 31... Kg7 {[%clk 0:00:13.5]} 32. Nf1
{[%clk 0:00:08.7]} 32... Qc7 {[%clk 0:00:11.7]} 33. Ng3 {[%clk 0:00:08.1]} 33...
Bd6 {[%clk 0:00:11.1]} 34. Rxb6 {[%clk 0:00:08.7]} 34... Qxb6 {[%clk 0:00:11.9]}
35. Qa1 {[%clk 0:00:09.2]} 35... Bxg3 {[%clk 0:00:11.3]} 36. fxg3 {[%clk
0:00:10]} 36... Qb3 {[%clk 0:00:11.7]} 37. Qc1 {[%clk 0:00:10.4]} 37... Ne4
{[%clk 0:00:11.5]} 38. g4 {[%clk 0:00:09.4]} 38... h4 {[%clk 0:00:10.5]} 39. Kh2
{[%clk 0:00:08.8]} 39... g5 {[%clk 0:00:10.9]} 40. Bf3 {[%clk 0:00:09]} 40...
Ng3 {[%clk 0:00:10.8]} 41. Qe1 {[%clk 0:00:03.5]} 41... Qd3 {[%clk 0:00:10.4]}
42. Kg1 {[%clk 0:00:03.8]} 42... Kf6 {[%clk 0:00:08.8]} 43. Kf2 {[%clk
0:00:04.4]} 43... Ke6 {[%clk 0:00:08.3]} 44. Kg1 {[%clk 0:00:05.1]} 44... Kd6
{[%clk 0:00:07.8]} 45. Kf2 {[%clk 0:00:05.8]} 45... Kd7 {[%clk 0:00:08.3]} 46.
Kg1 {[%clk 0:00:06.2]} 46... Qc2 {[%clk 0:00:08.5]} 47. Kh2 {[%clk 0:00:05.9]}
47... f6 {[%clk 0:00:08.5]} 48. Kg1 {[%clk 0:00:06.1]} 48... Qd3 {[%clk
0:00:06.7]} 49. Kf2 {[%clk 0:00:06.2]} 49... Ne4+ {[%clk 0:00:06.3]} 50. Bxe4
{[%clk 0:00:06.2]} 50... Qxe4 {[%clk 0:00:07.1]} 51. Kg1 {[%clk 0:00:06.5]}
51... Qc2 {[%clk 0:00:06.4]} 52. Qf1 {[%clk 0:00:05.3]} 52... Ke7 {[%clk
0:00:05.1]} 53. Qa6 {[%clk 0:00:04.1]} 53... Qc1+ {[%clk 0:00:03.9]} 54. Kh2
{[%clk 0:00:04.5]} 54... Qxe3 {[%clk 0:00:04]} 55. Qb7+ {[%clk 0:00:05]} 55...
Kf8 {[%clk 0:00:03.5]} 56. Qc8+ {[%clk 0:00:03.2]} 56... Kf7 {[%clk 0:00:03.1]}
57. Qf5 {[%clk 0:00:04]} 57... Qf4+ {[%clk 0:00:02.2]} 58. Qxf4 {[%clk
0:00:04.5]} 58... gxf4 {[%clk 0:00:02.7]} 59. Kg1 {[%clk 0:00:05.4]} 59... Ke6
{[%clk 0:00:03]} 60. Kf2 {[%clk 0:00:06.3]} 60... Kd6 {[%clk 0:00:01.7]} 61. Kf3
{[%clk 0:00:07]} 61... c5 {[%clk 0:00:02.6]} 62. dxc5+ {[%clk 0:00:06.6]} 62...
Kxc5 {[%clk 0:00:03.5]} 63. Kxf4 {[%clk 0:00:07.3]} 63... d4 {[%clk 0:00:04.2]}
64. g3 {[%clk 0:00:05.2]} 64... hxg3 {[%clk 0:00:03.9]} 65. Kxg3 {[%clk
0:00:05.9]} 65... d3 {[%clk 0:00:04.8]} 66. h4 {[%clk 0:00:06.1]} 66... Kd4
{[%clk 0:00:05]} 67. h5 {[%clk 0:00:07]} 67... d2 {[%clk 0:00:05]} 68. h6 {[%clk
0:00:07.9]} 68... d1=Q {[%clk 0:00:05.8]} 69. Kf4 {[%clk 0:00:08]} 69... Qh1
{[%clk 0:00:05.8]} 70. g5 {[%clk 0:00:08.5]} 70... Qh4+ {[%clk 0:00:05.3]} 71.
Kf5 {[%clk 0:00:08.9]} 71... Qxg5+ {[%clk 0:00:06.2]} 0-1

[Event "Early-Titled-Tuesday-Blitz-April-23-2024"]
[Site "Chess.com"]
[Date "2024.04.23"]
[Round "3"]
[White "sathvikadiga"]
[Black "ccccvhhhj"]
[Result "0-1"]
[WhiteElo "2614"]
[BlackElo "2465"]
[TimeControl "180+1"]
[EndTime "8:30:56 PDT"]
[Termination "ccccvhhhj won by checkmate"]

1. e4 {[%clk 0:03:00.9]} 1... e6 {[%clk 0:03:00.1]} 2. d4 {[%clk 0:03:00.2]}
2... d5 {[%clk 0:03:01]} 3. Nc3 {[%clk 0:03:00.3]} 3... Bb4 {[%clk 0:03:00.9]}
4. e5 {[%clk 0:02:58.2]} 4... c5 {[%clk 0:03:00.9]} 5. a3 {[%clk 0:02:58.3]}
5... Bxc3+ {[%clk 0:03:01.5]} 6. bxc3 {[%clk 0:02:59.1]} 6... Ne7 {[%clk
0:03:02.4]} 7. Qg4 {[%clk 0:02:58.6]} 7... Kf8 {[%clk 0:03:03.1]} 8. Nf3 {[%clk
0:02:53]} 8... Qa5 {[%clk 0:03:03.4]} 9. Bd2 {[%clk 0:02:52.2]} 9... Qa4 {[%clk
0:03:04.1]} 10. Kd1 {[%clk 0:02:50.8]} 10... Nbc6 {[%clk 0:03:03.6]} 11. h4
{[%clk 0:02:49.7]} 11... b6 {[%clk 0:03:03.7]} 12. h5 {[%clk 0:02:49]} 12... h6
{[%clk 0:03:04.4]} 13. Rh4 {[%clk 0:02:38]} 13... Ba6 {[%clk 0:03:03.9]} 14.
Bxa6 {[%clk 0:02:22.5]} 14... Qxa6 {[%clk 0:03:04.8]} 15. Rh3 {[%clk 0:02:16]}
15... Rc8 {[%clk 0:03:02.6]} 16. Rc1 {[%clk 0:02:02.6]} 16... Qc4 {[%clk
0:03:00.6]} 17. Qf4 {[%clk 0:01:34.4]} 17... Qf1+ {[%clk 0:02:30.1]} 18. Ne1
{[%clk 0:01:33.5]} 18... Ke8 {[%clk 0:02:05.9]} 19. Rg3 {[%clk 0:00:54.7]} 19...
Nf5 {[%clk 0:01:57.6]} 20. Rf3 {[%clk 0:00:54.9]} 20... Rf8 {[%clk 0:01:54]} 21.
g4 {[%clk 0:00:51.2]} 21... Nfe7 {[%clk 0:01:48.7]} 22. g5 {[%clk 0:00:35.8]}
22... Nf5 {[%clk 0:01:47.5]} 23. Be3 {[%clk 0:00:33.6]} 23... cxd4 {[%clk
0:01:38.2]} 24. Bxd4 {[%clk 0:00:29.1]} 24... Ncxd4 {[%clk 0:01:03.3]} 25. cxd4
{[%clk 0:00:30]} 25... Qh1 {[%clk 0:01:03.8]} 26. Kd2 {[%clk 0:00:20.4]} 26...
Qxh5 {[%clk 0:01:01.9]} 27. gxh6 {[%clk 0:00:18.8]} 27... Qxh6 {[%clk
0:00:44.5]} 28. Qxh6 {[%clk 0:00:17]} 28... Nxh6 {[%clk 0:00:45.1]} 29. c3
{[%clk 0:00:17.5]} 29... Ke7 {[%clk 0:00:41.5]} 30. Nd3 {[%clk 0:00:16.9]} 30...
Nf5 {[%clk 0:00:41.4]} 31. Rh1 {[%clk 0:00:17.4]} 31... Rh8 {[%clk 0:00:41.3]}
32. Rfh3 {[%clk 0:00:18.1]} 32... Rxh3 {[%clk 0:00:40.9]} 33. Rxh3 {[%clk
0:00:19]} 33... Nh6 {[%clk 0:00:40.5]} 34. Rh1 {[%clk 0:00:15.2]} 34... Nf5
{[%clk 0:00:29.4]} 35. a4 {[%clk 0:00:12.8]} 35... g5 {[%clk 0:00:27]} 36. a5
{[%clk 0:00:10.2]} 36... bxa5 {[%clk 0:00:11.9]} 37. Ra1 {[%clk 0:00:10.3]}
37... Kf8 {[%clk 0:00:09.7]} 38. Rxa5 {[%clk 0:00:10.7]} 38... Rc7 {[%clk
0:00:09.8]} 39. Nc5 {[%clk 0:00:10.9]} 39... Kg7 {[%clk 0:00:10.3]} 40. Ke2
{[%clk 0:00:09.3]} 40... Kg6 {[%clk 0:00:09.7]} 41. Ra1 {[%clk 0:00:08.3]} 41...
Nh6 {[%clk 0:00:08.2]} 42. Kf3 {[%clk 0:00:08.2]} 42... Nf5 {[%clk 0:00:08.4]}
43. Rh1 {[%clk 0:00:07.8]} 43... a5 {[%clk 0:00:05]} 44. Ra1 {[%clk 0:00:07]}
44... Ra7 {[%clk 0:00:05.4]} 45. Ra3 {[%clk 0:00:05]} 45... Nh4+ {[%clk
0:00:05.8]} 46. Kg4 {[%clk 0:00:04.7]} 46... Ng2 {[%clk 0:00:06.2]} 47. Nb3
{[%clk 0:00:04.7]} 47... a4 {[%clk 0:00:04.6]} 48. Nc5 {[%clk 0:00:04.6]} 48...
Nf4 {[%clk 0:00:05]} 49. Kf3 {[%clk 0:00:04.9]} 49... Nh5 {[%clk 0:00:03.9]} 50.
Nxa4 {[%clk 0:00:03.6]} 50... Kf5 {[%clk 0:00:03.3]} 51. Ra2 {[%clk 0:00:03.1]}
51... g4+ {[%clk 0:00:04.2]} 52. Kg2 {[%clk 0:00:03.4]} 52... Nf4+ {[%clk
0:00:04.8]} 53. Kg3 {[%clk 0:00:04]} 53... Nd3 {[%clk 0:00:04]} 54. Rd2 {[%clk
0:00:03.8]} 54... Nc1 {[%clk 0:00:03.3]} 55. Nc5 {[%clk 0:00:03]} 55... Ra1
{[%clk 0:00:03.4]} 56. Kg2 {[%clk 0:00:03.3]} 56... Ra5 {[%clk 0:00:02.3]} 57.
f3 {[%clk 0:00:03.4]} 57... Na2 {[%clk 0:00:02.8]} 58. Rf2 {[%clk 0:00:02.8]}
58... Nxc3 {[%clk 0:00:02.8]} 59. fxg4+ {[%clk 0:00:03.1]} 59... Kxg4 {[%clk
0:00:03.7]} 60. Rf6 {[%clk 0:00:03.3]} 60... Ra7 {[%clk 0:00:03.2]} 61. Kf1
{[%clk 0:00:03.6]} 61... Ne4 {[%clk 0:00:03.3]} 62. Rxf7 {[%clk 0:00:01.2]}
62... Nxc5 {[%clk 0:00:03.1]} 63. Rb7 {[%clk 0:00:01]} 63... Rxb7 {[%clk
0:00:03.1]} 64. dxc5 {[%clk 0:00:01.6]} 64... Rc7 {[%clk 0:00:03.7]} 65. c6
{[%clk 0:00:02.5]} 65... Rxc6 {[%clk 0:00:04]} 66. Ke2 {[%clk 0:00:03.4]} 66...
Rc4 {[%clk 0:00:04.9]} 67. Ke3 {[%clk 0:00:04.3]} 67... Re4+ {[%clk 0:00:05.8]}
68. Kd3 {[%clk 0:00:05.2]} 68... Rxe5 {[%clk 0:00:06.4]} 69. Kd4 {[%clk
0:00:06.1]} 69... Re4+ {[%clk 0:00:06.5]} 70. Kc5 {[%clk 0:00:07]} 70... Re1
{[%clk 0:00:06.7]} 71. Kd6 {[%clk 0:00:07.9]} 71... d4 {[%clk 0:00:07]} 72. Ke7
{[%clk 0:00:08.8]} 72... d3 {[%clk 0:00:07.9]} 73. Kf6 {[%clk 0:00:09.7]} 73...
e5 {[%clk 0:00:08.5]} 74. Kg6 {[%clk 0:00:10.6]} 74... e4 {[%clk 0:00:09.4]} 75.
Kf7 {[%clk 0:00:11.2]} 75... e3 {[%clk 0:00:10.3]} 76. Ke6 {[%clk 0:00:12.1]}
76... e2 {[%clk 0:00:11]} 77. Ke5 {[%clk 0:00:13]} 77... d2 {[%clk 0:00:11.9]}
78. Ke4 {[%clk 0:00:13.4]} 78... Rf1 {[%clk 0:00:11.3]} 79. Ke3 {[%clk
0:00:14.3]} 79... e1=Q+ {[%clk 0:00:11.5]} 80. Kd4 {[%clk 0:00:14]} 80... d1=Q+
{[%clk 0:00:11.8]} 81. Kc4 {[%clk 0:00:14.9]} 81... Rf4+ {[%clk 0:00:12]} 82.
Kc5 {[%clk 0:00:15.8]} 82... Qe5+ {[%clk 0:00:12.2]} 83. Kc6 {[%clk 0:00:16.7]}
83... Qdd6+ {[%clk 0:00:12.5]} 84. Kb7 {[%clk 0:00:17.1]} 84... Rf7+ {[%clk
0:00:13]} 85. Kc8 {[%clk 0:00:17.5]} 85... Qe8# {[%clk 0:00:13.7]} 0-1